Cogmind - Beta 13 @@@ ROGUE MODE // 2024.05.27 @ 18:20:50 Player: Ragemodebzrk Result: Destroyed by Y-45 Defender via exploding Compression Vault Performance ------------- Evolutions (1) 500 Regions Visited (3) 600 Robots Destroyed (22) 110 Value Destroyed (582) 582 Prototype IDs (2) 40 Alien Tech Used (0) 0 Bonus (159) 159 TOTAL SCORE: 1991 Bonus ------- Follower Combat Kills 159 Cogmind --------- Core Integrity 0/400 Matter 294/300 Energy 263/275 System Corruption 2% Temperature Cool (36) Movement Walking (120) Location -9/Storage Parts ------- > --- POWER (1) -------- Deuterium Engine > --- PROPULSION (2) --- Aluminum Leg Improved Aluminum Leg > --- UTILITY (3) ------ Heat Sink Signal Interpreter > --- WEAPON (3) ------- Beam Rifle Beam Rifle Light Assault Rifle > --- INVENTORY (5) ---- Deuterium Engine Improved Signal Interpreter Peak State ------------ > --- POWER ------------ Deuterium Engine > --- PROPULSION ------- Improved Aluminum Leg Flight Unit > --- UTILITY ---------- Heat Sink Signal Interpreter Shield Generator > --- WEAPON ----------- Beam Rifle Beam Rifle Heavy Assault Rifle > --- INVENTORY -------- Deuterium Engine Aluminum Leg Improved Signal Interpreter [Rating: 16] Favorites ----------- Power Deuterium Engine Engine Deuterium Engine Propulsion Flight Unit Leg Improved Aluminum Leg Wheel Wheel Flight Unit Flight Unit Utility Signal Interpreter Device Heat Sink Processor Signal Interpreter Protection Light Armor Plating Weapon Beam Rifle Energy Gun Beam Rifle Ballistic Gun Heavy Assault Rifle Build | -11 -10 -9 -9 ------- Run | Yrd Mat Mat Sto Slots Evolved 2 | . . 2 . Power . | . . . . Propulsion . | . . . . Utility 1 | . . 1 . Weapon 1 | . . 1 . Parts Attached 28 | 5 . 19 4 Power 4 | 1 . 3 . Engine 4 | 1 . 3 . Core . | . . . . Reactor . | . . . . Propulsion 7 | 2 . 3 2 Treads . | . . . . Leg 2 | . . . 2 Wheel 2 | 2 . . . Hover . | . . . . Flight 3 | . . 3 . Utility 5 | . . 5 . Device 2 | . . 2 . Storage . | . . . . Processor 1 | . . 1 . Hackware . | . . . . Protection 2 | . . 2 . Artifact . | . . . . Weapon 12 | 2 . 8 2 Energy Gun 7 | 1 . 5 1 Energy Cannon . | . . . . Ballistic Gun 5 | 1 . 3 1 Ballistic Cannon . | . . . . Launcher . | . . . . Special Weapon . | . . . . Impact Weapon . | . . . . Slashing Weapon . | . . . . Piercing Weapon . | . . . . Special Melee Weapon . | . . . . Unidentified Prototypes . | . . . . Parts Lost 9 | . 2 5 2 Power 1 | . 1 . . Propulsion 2 | . . 2 . Utility 1 | . . . 1 Weapon 5 | . 1 3 1 Highest Loss Streak 3 | . 2 3 1 To Critical Strikes . | . . . . Average Slot Usage (%) 83 | . 54 83 89 Engine 10 | . 10 9 11 Leg 1 | . . . 3 Wheel 1 | . 22 . . Flight 11 | . . 15 9 Device 14 | . . 10 22 Processor 9 | . . 10 11 Protection 3 | . . 7 . Energy Gun 13 | . 11 8 19 Ballistic Gun 16 | . 8 19 12 Naked Turns 29 | . 22 7 . Heaviest Build 21 | 7 7 20 21 Greatest Support 26 | 26 26 8 23 Greatest Overweight (x) 5 | . . 4 5 Average Overweight (x) 1 | . . 1 3 Largest Inventory Capacity 5 | 5 5 5 5 Average Capacity 5 | 5 5 5 5 Most Carried 5 | 5 . 3 4 Average Carried 1 | 1 . 1 2 Final Capacity 5 | 5 5 5 5 Final Carried 2 | . . 2 2 Class Distribution -------------------- 64% | Scavenger-Tank 17% | Mutant 15% | Commander-Tank Dominant Class ---------------- Mutant | -10/Materials Scavenger-Tank | -9/Materials Scavenger-Tank | -9/Storage Resources | -11 -10 -9 -9 ----------- Run | Yrd Mat Mat Sto Matter Collected 606 | 229 . 301 76 Remotely . | . . . . Salvage Created 740 | . 143 427 170 Parts 42 | . 11 25 6 Haulers Intercepted . | . . . . Recyclers Shooed 1 | . . 1 . Parts Field Recycled . | . . . . Retrieved Matter . | . . . . Parts Self-Destructed . | . . . . Prevented . | . . . . Kills | -11 -10 -9 -9 ------- Run | Yrd Mat Mat Sto Combat Hostiles Destroyed 21 | . 4 12 5 Guns 21 | . 4 12 5 Classes Destroyed 4 | . 3 1 . Worker 1 | . 1 . . Swarmer 8 | . 2 4 2 Grunt 10 | . 2 6 2 Sentry 3 | . . 2 1 Best Kill Streak 5 | . 5 4 3 Combat Bots Only 4 | . 4 4 3 Max Kills in Single Turn 2 | . 1 2 1 Gunslinging . | . . . . Exploded . | . . . . Melee . | . . . . Uniques/NPCs Destroyed . | . . . . Combat | -11 -10 -9 -9 -------- Run | Yrd Mat Mat Sto Hostile Shots Fired 180 | . 66 95 19 Missed 52 | . 21 26 5 Damage Taken 1465 | . 449 845 171 Core 609 | . 203 341 65 Absorbed by Shields 52 | . . . 52 Core Remaining (%) 59 | 100 18 . . Volleys Fired 73 | . 15 44 14 Largest 3 | . 2 3 3 Hottest 135 | . 70 99 135 Shots Fired 143 | . 25 77 41 Gun 143 | . 25 77 41 Cannon . | . . . . Launcher . | . . . . Special . | . . . . Kinetic 79 | . 10 52 17 Thermal 60 | . 15 21 24 Explosive . | . . . . Electromagnetic 4 | . . 4 . Robot Hit Streak 11 | . 2 11 9 Robot Miss Streak 5 | . 5 3 4 Penetration Max . | . . . . Secondary Targets 4 | . 1 3 . Max Gunslinging Chain 1 | . 1 1 . Shots Hit Robots 82 | . 9 54 19 Core Hits 40 | . 8 24 8 Critical Kills . | . . . . Critical Parts Destroyed . | . . . . Critical Strikes 4 | . . 3 1 Burn 4 | . . 3 1 Melee Attacks . | . . . . Impact . | . . . . Slashing . | . . . . Piercing . | . . . . Sneak Attacks . | . . . . Combat Hostiles . | . . . . Follow-up Attacks . | . . . . Damage Inflicted 1086 | . 150 669 267 Guns 1086 | . 150 669 267 Cannons . | . . . . Explosions . | . . . . Melee . | . . . . Ramming . | . . . . Kinetic 604 | . 76 446 82 Thermal 456 | . 74 197 185 Explosive . | . . . . Electromagnetic 26 | . . 26 . Impact . | . . . . Slashing . | . . . . Piercing . | . . . . Highest Corruption 2 | . . 2 2 Average Corruption 2 | . . 2 2 Corruption Purged . | . . . . Corruption Blocked . | . . . . Effects 15 | . . 8 7 Message Errors 5 | . . 3 2 Matter Fused 2 | . . 1 1 Heat Flow Errors 1 | . . . 1 Data Loss (minor) 2 | . . 1 1 Data Loss (major) 3 | . . 1 2 Weapon Failures 2 | . . 2 . Overload Shots . | . . . . Overflow Damage . | . . . . Projectiles . | . . . . Explosions . | . . . . Melee . | . . . . Knockbacks . | . . . . Impact . | . . . . Kinetic . | . . . . Secondary . | . . . . Self-Inflicted Damage . | . . . . Shots . | . . . . Rammed 1 | . . 1 . Targets Rammed 1 | . . 1 . Kicked . | . . . . Crushed . | . . . . Highest Temperature 255 | . 153 182 255 Average Temperature 51 | . 64 51 41 Received Heat Transfer 383 | . 51 294 38 Siege Activations . | . . . . Robots Corrupted . | . . . . Combat Hostiles . | . . . . Parts Fried . | . . . . Impact Corruptions . | . . . . Robots Melted . | . . . . Combat Hostiles . | . . . . Parts Melted 6 | . . 4 2 Heat Transferred 1494 | . 222 717 555 Parts Sabotaged . | . . . . Parts Stolen . | . . . . Parts Stripped . | . . . . Power Chain Reactions . | . . . . Alert | -11 -10 -9 -9 ------- Run | Yrd Mat Mat Sto Peak Influence 230 | . 101 222 230 Initial 42 | . . 42 42 Average 90 | . 42 106 85 Maximum Alert Level 1 | . . 1 1 Low Security (%) 94 | 100 100 94 92 Level 1 5 | . . 5 7 Level 2 . | . . . . Level 3 . | . . . . Level 4 . | . . . . Level 5 . | . . . . High Security . | . . . . Max Security . | . . . . Squads Dispatched 2 | . . 1 1 Investigation 2 | . . 1 1 Extermination . | . . . . Reinforcement . | . . . . Assault . | . . . . Garrison . | . . . . Intercept . | . . . . Searches Triggered . | . . . . Construction Impeded . | . . . . Haulers Reinforced . | . . . . Active Scanning Responses . | . . . . Cargo Convoy Interrupts . | . . . . Stealth | -11 -10 -9 -9 --------- Run | Yrd Mat Mat Sto Distress Signals 1 | . . . 1 Communications Jammed . | . . . . Distress Signals . | . . . . Times Spotted 38 | . 11 12 15 Peak Tracking Total 7 | . 7 5 4 Tactical Retreats . | . . . . Traps | -11 -10 -9 -9 ------- Run | Yrd Mat Mat Sto Traps Triggered 2 | . 1 1 . Indirectly . | . . . . Trap Hack Attempts . | . . . . Triggered . | . . . . Disarmed . | . . . . Reprogrammed . | . . . . Reused . | . . . . Traps Extracted . | . . . . Installed . | . . . . Triggered . | . . . . Machines | -11 -10 -9 -9 ---------- Run | Yrd Mat Mat Sto Machines Disabled . | . . . . Max in Single Turn . | . . . . Machines Repaired . | . . . . Machines Dismantled . | . . . . Machines Sabotaged . | . . . . Overloaded Fab Kills . | . . . . Hacking | -11 -10 -9 -9 --------- Run | Yrd Mat Mat Sto Machines Accessed 5 | . 1 1 3 Terminals 5 | . 1 1 3 Fabricators . | . . . . Repair Stations . | . . . . Recycling Units . | . . . . Scanalyzers . | . . . . Garrison Access . | . . . . Total Hacks 14 | . 4 3 7 Successful 6 | . 2 2 2 Failed 8 | . 2 1 5 Catastrophic 1 | . . . 1 Database Lockouts . | . . . . Manual . | . . . . Terminals 14 | . 4 3 7 Fabricators . | . . . . Repair Stations . | . . . . Recycling Units . | . . . . Scanalyzers . | . . . . Garrison Access . | . . . . Terminal Hacks 6 | . 2 2 2 Record 1 | . 1 . . Prototype ID Bank 1 | . 1 . . Emergency Access Points 1 | . . . 1 Locate Traps 1 | . . 1 . Dispatch Records 1 | . . 1 . Extermination Status 1 | . . . 1 Fabricator Hacks . | . . . . Repair Station Hacks . | . . . . Recycling Unit Hacks . | . . . . Scanalyzer . | . . . . Garrison Access Hacks . | . . . . Unauthorized Hacks . | . . . . Terminals . | . . . . Fabricators . | . . . . Repair Stations . | . . . . Recycling Units . | . . . . Scanalyzers . | . . . . Garrison Access . | . . . . Data Cores Recovered . | . . . . Used . | . . . . Hacking Detections 5 | . 1 1 3 Full Trace Events 2 | . . 1 1 Feedback Events . | . . . . Feedback Blocked . | . . . . Robot Schematics Acquired . | . . . . Robots Built . | . . . . Authchips . | . . . . Time . | . . . . Total Robot Build Rating . | . . . . Part Schematics Acquired . | . . . . Parts Built . | . . . . Authchips . | . . . . Time . | . . . . Total Part Build Rating . | . . . . Parts Repaired . | . . . . Time . | . . . . Parts Recycled . | . . . . Recycled Matter . | . . . . Retrieved Matter . | . . . . Retrieved Components . | . . . . Parts Scanalyzed . | . . . . Part Schematics Acquired . | . . . . Parts Damaged . | . . . . Bothacking | -11 -10 -9 -9 ------------ Run | Yrd Mat Mat Sto Used RIF Installer . | . . . . Robots Hacked . | . . . . Non-combat . | . . . . Combat . | . . . . Robot Hacks Applied . | . . . . Relay Couplers Released . | . . . . Fabnet Peak Effective % . | . . . . Robots Rewired . | . . . . Allies Hacked . | . . . . Hacks Repelled . | . . . . Allies | -11 -10 -9 -9 -------- Run | Yrd Mat Mat Sto Total Allies 10 | . . . 10 Largest Group 10 | . . . 10 Highest-Rated Group 88 | . . . 88 Highest-Rated Ally 16 | . . . 16 Total Orders . | . . . . Ally Attacks 54 | . . . 54 Total Damage 511 | . . . 511 Kills 11 | . . . 11 Allies Corrupted . | . . . . Allies Melted . | . . . . Intel | -11 -10 -9 -9 ------- Run | Yrd Mat Mat Sto Robot Analysis Total . | . . . . Derelict Logs Recovered . | . . . . Drone Launches . | . . . . Drone Recoveries . | . . . . Exploration | -11 -10 -9 -9 ------------- Run | Yrd Mat Mat Sto Turns Passed 1404 | 38 105 686 575 Spaces Moved 612 | 41 92 316 163 Core 101 | 21 44 36 . Treads . | . . . . Legs 56 | . . . 56 Wheels 68 | 20 48 . . Hover . | . . . . Flight 387 | . . 280 107 Fastest Speed 40 | 50 50 40 120 Average Speed 186 | 69 70 169 315 Slowest Speed 440 | 90 90 360 440 Overloaded Moves . | . . . . Propulsion Burnouts . | . . . . Robots Hopped . | . . . . Cave-ins Triggered . | . . . . Exploration Rate (%) 22 | 3 29 24 34 Regions Visited 3 Branch Regions 1 Pre-discovered Areas . | . . . . Known Exits Taken 1 | . . 1 . Unknown Exits Taken 2 | 1 1 . . Scrap Searched . | . . . . Spaces Dug . | . . . . Terrain Destroyed . | . . . . Melee . | . . . . Projectile . | . . . . AOE . | . . . . Terrain Rammed . | . . . . Walls Destroyed . | . . . . Machines Disabled . | . . . . Actions | -11 -10 -9 -9 --------- Run | Yrd Mat Mat Sto Total 755 | 50 106 406 193 Wait 6 | . . . 6 Move 609 | 40 91 315 163 Hop . | . . . . Pick Up 30 | 5 . 21 4 Fast Attach . | . . . . Attach 22 | 5 . 15 2 Detach . | . . . . Swap 6 | . . 4 2 Drop 8 | . . 6 2 Fire 73 | . 15 44 14 Melee . | . . . . Ram 1 | . . 1 . Kick . | . . . . Crush . | . . . . Escape Stasis . | . . . . Rewire . | . . . . Trap . | . . . . Miscellaneous . | . . . . Route ------- -11/Scrapyard -10/Materials (discovered 2 exits: *Mat / [*Min]) -9/Materials -9/Storage History --------- Turn | Location | Event 26 | -11/Scrapyard | Discovered new exit (range 15) 39 | -11/Scrapyard | Entered Materials 115 | -10/Materials | Core integrity fell below 50% 137 | -10/Materials | Discovered new exit (range 12) 140 | -10/Materials | Discovered new exit (range 6) 142 | -10/Materials | Core integrity fell below 20% 144 | -10/Materials | Entered another Materials area 144 | -9/Materials | Evolved 2 slots: Utility x1, Weapon x1 231 | -9/Materials | Core integrity fell below 50% 255 | -9/Materials | Lost 3 parts (1n2w) 631 | -9/Materials | Discovered new exit (range 7) 677 | -9/Materials | Core integrity fell below 20% 682 | -9/Materials | Build established: Scavenger-Tank 826 | -9/Materials | Identified exit to Storage 830 | -9/Materials | Entered Storage 1098 | -9/Storage | Assisted by bots powering up and referring to "LRC-V3" 1405 | -9/Storage | Destroyed by Y-45 Defender via exploding Compression Vault Last Messages --------------- K-01 Serf collects debris. S-10 Pest destroyed. Mercenary 2f destroyed. W-16 Scout destroyed. S-10 Pest destroyed. Connecting with Terminal... >>Access(Emergency) Found 1 emergency access door: (47,29) Map updated. Acquired 9 matter. System corrupted: Component data lost. K-01 Serf collects debris. Acquired Lgt. Assault Rifle. Dropped Hvy. Assault Rifle. K-01 Serf collects debris. K-01 Serf cleans the Compression Vault. Shield Generator destroyed. Mercenary 2i destroyed. Compression Vault explodes. Map ----- +----------------------------------------------------+ | | | | | | | | | | | | | | | | | ?????????????????????????????????????????????????? | | ?????????????????????????????????????????????????? | | ?????????????????????????????????????????????????? | | ?????????????????????????????????????????????????? | | ?????????????????????????????????????????????????? | | ?????????????????????????????????????????????????? | | ?????????????????????????????????????????????????? | | ?????????????????????????????????????????????????? | | ??????????????????????##?????????????????????????? | | ?????????????????????## #####?#??????????????????? | | ?????????????????????# +??????????????????? | | ?????????????????????#[[Y """ #??????????????????? | | ?????????????????????#[ """ ###????????????????? | | ?????????????????????# """ # ? #????????????? | | ?????????????????????#""" # """ #????????????? | | ?????????????????????#"R # """ #????????????? | | ?????????????????????#""" # """ #????????????? | | ?????????????????????# ""@ # ## ??????????? | | ?????????????????????# g # """ + ??????????? | | ?????????????????????#####/#### """ #????????????? | | ????????????????????????# % / """ #?????? ?????? | | ????????????????????????# g ### ##+#?##/#####? | | ????????????????????????# a#?# # #? | | ????????????????????????# #?# # """"" +? | | ????????????????????????# #?# # """"" #? | | ????????????????????????# #?####### """"" #? | | ????????????????????????# #????????? #? | | ????????????????????????# #??????????? #? | | ????????????????????????# #?????###????? ! ??? | | ????????????????????????# #######T########+####? | | ????????????????????????# =%[ =* !=!+ % #? | | ????????????????????????# [%%! !%!# """ [[[ #? | | ????????????????????????# %*= [%#*""" [[[ #? | | ????????????????????????##+########%==#=""" [[[ #? | | ?????????????????????????? ???????#[*=/%=! #? | | ?????????????????????????? ???????# %%#=[%= #? | | ??????????????????????????????????# =# = ! ## | | ??????????????????????????????????# # # | | ??????????????????????????????????# #####+###### | | ??????????????????????????????????# #???#%#????? | | ??????????????????????????????????#########[#????? | | ????????????????????????????????########%##=#????? | +----------------------------------------------------+ Best States ------------- Heat Dissipation 38 Energy Generation 14 Energy Capacity 275 Matter Stores 300 Matter Capacity 300 Sight Range 16 Terrain Scan Density 10 Armor Coverage 150 Evasion (%) 62 Item Schematics ----------------- None Robot Schematics ------------------ None Fabricated ------------ Nothing Alien Tech Used ----------------- None Achievements -------------- The More The Merrier Challenges ------------ None Game ------ Seed NuclearRiotAnalyzer Manual? 0 Play Time 00:15:10 Cumulative 4.4 hours Start 2024.05.27 @ 18:06:26 End 2024.05.27 @ 18:20:50 Sessions 1 Manual Loads 0 Difficulty Rogue Special Mode None Game No. 9 Rogue 9 Adventurer 0 Explorer 0 Win Type - Total 0 Types 0/0/0/0/0/0/0/0/0 Lore% 9 Gallery% 10 Achievement% 8 Wizard Run 0 Options --------- Layout 1 ASCII 0 Keyboard 0 Movement Mouse Keybinds 0 Fullscreen 1 Font 24/Smallcaps Map View 50x35 Zoom Use 0% Tactical HUD 0 Map Filters NONE Filters NONE Steam 1 RUN: f6ac7681-b04f-497a-a9b8-e0b359b9b9b9